bitfinex/quotes_BTCUSD_20240908
["timestamp","ask_amount","ask_price","bid_price","bid_amount"]
[1725789199325,1.10724421,54657.0,54656.0,0.03292655]
[1725789199751,1.10723928,54657.0,54656.0,0.03292655]
[1725789200839,1.13592443,54657.0,54656.0,0.03292655]
[1725789201722,1.02599815,54657.0,54656.0,0.03292655]
[1725789203970,0.5961654,54657.0,54656.0,0.05592655]
[1725789204194,0.56868204,54657.0,54656.0,0.05592655]
[1725789204434,0.56868204,54657.0,54656.0,0.05392655]
[1725789204664,0.51371415,54657.0,54656.0,0.05392655]
[1725789205153,0.21819119,54657.0,54656.0,0.05392655]
[1725789205618,0.47433319,54657.0,54656.0,0.05392655]
[1725789206325,0.44564804,54657.0,54656.0,0.05392655]
[1725789207248,0.06143404,54657.0,54656.0,0.05592655]
[1725789207510,0.228066,54659.0,54658.0,0.02129655]
[1725789207795,0.484199,54659.0,54658.0,0.04229655]
[1725789208524,0.228066,54659.0,54658.0,0.05429655]
[1725789209751,0.51288099,54659.0,54658.0,0.05429655]
[1725789211843,0.51369599,54659.0,54658.0,0.05429655]
[1725789212086,0.25756299,54659.0,54658.0,0.05429655]
[1725789216418,0.228881,54659.0,54658.0,0.05429655]
[1725789219753,0.25756294,54659.0,54658.0,0.05429655]
[1725789223280,0.51369594,54659.0,54658.0,0.05429655]
[1725789226291,0.485014,54659.0,54658.0,0.05429655]
[1725789229740,0.51369596,54659.0,54658.0,0.05429655]
[1725789231454,0.76982896,54659.0,54658.0,0.05429655]
[1725789231666,0.82476184,54659.0,54658.0,0.05429655]
[1725789231871,0.76982896,54659.0,54658.0,0.05429655]
[1725789232087,0.82476025,54659.0,54658.0,0.05429655]
[1725789232768,0.82476148,54659.0,54658.0,0.05429655]
[1725789232982,0.82476191,54659.0,54658.0,0.05429655]
[1725789233418,0.82476388,54659.0,54658.0,0.05429655]
[1725789234105,0.82476448,54659.0,54658.0,0.05429655]
[1725789235425,0.85223224,54659.0,54658.0,0.05429655]
[1725789235640,0.76982896,54659.0,54658.0,0.05429655]
[1725789236293,0.83232896,54659.0,54658.0,0.05429655]
[1725789236516,0.803647,54659.0,54658.0,0.05429655]
[1725789236925,0.85860043,54659.0,54658.0,0.05429655]
[1725789237065,0.803647,54659.0,54658.0,0.05429655]
[1725789238356,0.88605028,54659.0,54658.0,0.05429655]
[1725789238587,0.803647,54659.0,54658.0,0.05429655]
[1725789238814,0.88608834,54659.0,54658.0,0.05429655]
[1725789239065,0.88608555,54659.0,54658.0,0.05429655]
[1725789239353,0.803647,54659.0,54658.0,0.05429655]
[1725789239581,0.83232931,54659.0,54658.0,0.05429655]
[1725789240064,0.91477234,54659.0,54658.0,0.05429655]
[1725789240290,0.91477439,54659.0,54658.0,0.05429655]
[1725789240508,0.91477558,54659.0,54658.0,0.05429655]
[1725789241194,1.19838038,54659.0,54658.0,0.03129655]
[1725789241421,1.08846231,54659.0,54658.0,0.02929655]
[1725789241634,1.22585989,54659.0,54658.0,0.03129655]
[1725789242983,1.08846231,54659.0,54658.0,0.02929655]
[1725789243436,1.22585989,54659.0,54658.0,0.02929655]
[1725789243678,1.22585989,54659.0,54658.0,0.03129655]
[1725789244117,1.08846231,54659.0,54658.0,0.03129655]
[1725789244552,1.22585989,54659.0,54658.0,0.03129655]
[1725789244775,1.08846231,54659.0,54658.0,0.03129655]
[1725789245455,1.19840932,54659.0,54658.0,0.02929655]
[1725789245676,1.08846231,54659.0,54658.0,0.02929655]
[1725789246125,1.08846231,54659.0,54658.0,0.03129655]
[1725789246368,1.05978,54659.0,54658.0,0.02929655]
[1725789246614,1.19717758,54659.0,54658.0,0.02929655]
[1725789249666,1.22586074,54659.0,54658.0,0.02929655]
[1725789250763,1.16336074,54659.0,54658.0,0.02929655]
[1725789251926,1.16336074,54659.0,54658.0,0.03129655]
[1725789252174,0.93529474,54659.0,54658.0,0.03129655]
[1725789252386,0.89789716,54659.0,54658.0,0.03129655]
[1725789253282,1.07849778,54659.0,54658.0,0.03129655]
[1725789254558,0.82236478,54659.0,54658.0,0.03129655]
[1725789254779,0.7399052,54659.0,54658.0,0.05429655]
[1725789254995,0.79487441,54659.0,54658.0,0.05429655]
[1725789256331,0.76619125,54659.0,54658.0,0.05429655]
[1725789257205,0.76619114,54659.0,54658.0,0.05429655]
[1725789258479,0.71122204,54659.0,54658.0,0.05429655]
[1725789259391,0.76619119,54659.0,54658.0,0.05429655]
[1725789259627,0.79487509,54659.0,54658.0,0.05429655]
[1725789259851,0.79569009,54659.0,54658.0,0.05429655]
[1725789262142,0.7956911,54659.0,54658.0,0.05429655]
[1725789263254,0.82317618,54659.0,54658.0,0.05429655]
[1725789265486,0.79252642,54659.0,54658.0,0.05429655]
[1725789265705,0.73755574,54659.0,54658.0,0.05429655]
[1725789265974,0.79252708,54659.0,54658.0,0.05429655]
[1725789266435,0.76384318,54659.0,54658.0,0.05429655]
[1725789266663,0.70887184,54659.0,54658.0,0.05429655]
[1725789267113,0.76384341,54659.0,54658.0,0.05429655]
[1725789267330,0.70887184,54659.0,54658.0,0.05429655]
[1725789269557,0.73755447,54659.0,54658.0,0.05429655]
[1725789270026,0.79252003,54659.0,54658.0,0.05429655]
[1725789271130,0.79252003,54659.0,54658.0,0.05592655]
[1725789274040,0.53638703,54659.0,54658.0,0.05592655]
[1725789274755,0.48142147,54659.0,54658.0,0.05592655]
[1725789274974,0.53638972,54659.0,54658.0,0.05592655]
[1725789275464,0.56387671,54659.0,54658.0,0.05592655]
[1725789275711,0.84749479,54659.0,54658.0,0.05592655]
[1725789275936,0.73755447,54659.0,54658.0,0.03292655]
[1725789276387,0.81881667,54659.0,54658.0,0.03292655]
[1725789277073,0.81881934,54659.0,54658.0,0.03292655]
[1725789277510,0.81882137,54659.0,54658.0,0.03292655]
[1725789278414,0.70887184,54659.0,54658.0,0.03292655]
[1725789278643,0.81882395,54659.0,54658.0,0.03292655]
[1725789278887,0.8188228,54659.0,54658.0,0.03292655]
[1725789279116,0.79133673,54659.0,54658.0,0.03292655]
[1725789279340,0.70887184,54659.0,54658.0,0.03292655]
[1725789279567,0.73755455,54659.0,54658.0,0.03292655]
[1725789279787,0.84750639,54659.0,54658.0,0.03292655]
[1725789280022,0.84750604,54659.0,54658.0,0.03292655]
[1725789280234,0.73755455,54659.0,54658.0,0.03292655]
[1725789282731,0.87498279,54659.0,54658.0,0.03292655]
[1725789286494,0.84630008,54659.0,54658.0,0.03292655]
[1725789289633,0.87498281,54659.0,54658.0,0.03292655]
[1725789291136,0.73755457,54659.0,54658.0,0.03292655]
[1725789291342,0.87498281,54659.0,54658.0,0.03292655]
[1725789291593,0.73755457,54659.0,54658.0,0.03092655]
[1725789292036,0.87500821,54659.0,54658.0,0.03092655]
[1725789292254,0.73755457,54659.0,54658.0,0.03292655]
[1725789292726,0.87500821,54659.0,54658.0,0.03292655]
[1725789294080,0.87500821,54659.0,54658.0,0.03092655]
[1725789294745,0.73755457,54659.0,54658.0,0.03092655]
[1725789295677,0.73755457,54659.0,54658.0,0.05392655]
[1725789297193,0.99368757,54659.0,54658.0,0.05592655]
[1725789297418,0.73755457,54659.0,54658.0,0.05592655]
[1725789298516,0.99368757,54659.0,54658.0,0.05592655]
[1725789298739,0.73755457,54659.0,54658.0,0.05592655]
[1725789298991,0.99368757,54659.0,54658.0,0.03092655]
[1725789299988,0.99368757,54659.0,54658.0,0.03292655]
[1725789301332,0.99368757,54659.0,54658.0,0.03092655]
[1725789302021,0.96500484,54659.0,54658.0,0.03092655]
[1725789304023,0.99368917,54659.0,54658.0,0.03092655]
[1725789304748,1.13109386,54659.0,54658.0,0.03092655]
[1725789305226,1.13109426,54659.0,54658.0,0.03092655]
[1725789306340,0.99368917,54659.0,54658.0,0.03292655]
[1725789306806,1.13109313,54659.0,54658.0,0.03292655]
[1725789308412,0.99368917,54659.0,54658.0,0.03292655]
[1725789308920,1.13109006,54659.0,54658.0,0.03292655]
[1725789309330,0.99368917,54659.0,54658.0,0.03292655]
[1725789309536,1.13108617,54659.0,54658.0,0.03292655]
[1725789310169,1.131086,54659.0,54658.0,0.03292655]
[1725789312465,0.99368917,54659.0,54658.0,0.03092655]
[1725789313721,1.13108946,54659.0,54658.0,0.03292655]
[1725789313923,0.99368917,54659.0,54658.0,0.03292655]
[1725789314139,1.13109119,54659.0,54658.0,0.03292655]
[1725789315257,0.99368917,54659.0,54658.0,0.03292655]
[1725789315475,0.76562317,54659.0,54658.0,0.03292655]
[1725789315693,0.73693884,54659.0,54658.0,0.03292655]
[1725789315895,1.02175575,54659.0,54658.0,0.03292655]
[1725789316524,0.99307184,54659.0,54658.0,0.03292655]
[1725789318964,1.02175561,54659.0,54658.0,0.03292655]
[1725789321120,1.13170168,54659.0,54658.0,0.03292655]
[1725789321335,1.02175561,54659.0,54658.0,0.03292655]
[1725789323167,1.13170168,54659.0,54658.0,0.03292655]
[1725789324942,1.13172104,54659.0,54658.0,0.03292655]
[1725789325175,0.76562261,54659.0,54658.0,0.03292655]
[1725789325644,1.1592124,54659.0,54658.0,0.03292655]
[1725789326567,0.9030794,54659.0,54658.0,0.03292655]
[1725789326795,0.76562261,54659.0,54658.0,0.03292655]
[1725789327237,1.02175561,54659.0,54658.0,0.03292655]
[1725789327941,0.76562261,54659.0,54658.0,0.03292655]
[1725789328143,0.76562261,54659.0,54658.0,0.05392655]
[1725789328369,0.76562261,54659.0,54658.0,0.05592655]
[1725789328517,0.76562261,54659.0,54658.0,0.05392655]
[1725789328936,0.76562261,54659.0,54658.0,0.05592655]
[1725789330207,0.76562261,54659.0,54658.0,0.03292655]
[1725789330435,1.02175561,54659.0,54658.0,0.02092655]
[1725789330660,1.02175561,54659.0,54658.0,0.01092655]
[1725789331097,0.896745,54642.0,54641.0,9.7e-07]
[1725789331327,1.31788095,54642.0,54641.0,9.7e-07]
[1725789331560,1.57288395,54642.0,54641.0,9.7e-07]
[1725789332492,1.56972905,54642.0,54641.0,9.7e-07]
[1725789332716,1.49184909,54642.0,54641.0,9.7e-07]
[1725789333602,1.23563609,54642.0,54641.0,9.7e-07]
[1725789333811,1.26433237,54642.0,54641.0,9.7e-07]
[1725789335322,1.29068812,54642.0,54641.0,9.7e-07]
[1725789336431,1.40014706,54642.0,54641.0,9.7e-07]
[1725789337310,1.29068812,54642.0,54641.0,9.7e-07]
[1725789337784,1.26199184,54642.0,54641.0,9.7e-07]
[1725789338006,1.29068779,54642.0,54641.0,9.7e-07]
[1725789338439,1.37272853,54642.0,54641.0,9.7e-07]
[1725789339319,1.29068779,54642.0,54641.0,9.7e-07]
[1725789339556,1.37270212,54642.0,54641.0,9.7e-07]
[1725789340431,1.29068779,54642.0,54641.0,9.7e-07]
[1725789341325,1.34532962,54642.0,54641.0,9.7e-07]
[1725789342694,1.37270212,54642.0,54641.0,9.7e-07]
[1725789342932,1.29068779,54642.0,54641.0,9.7e-07]
[1725789344459,1.34528663,54642.0,54641.0,9.7e-07]
[1725789345116,1.29068779,54642.0,54641.0,9.7e-07]
[1725789345333,1.34527678,54642.0,54641.0,9.7e-07]
[1725789349231,1.3452612,54642.0,54641.0,9.7e-07]
[1725789349425,1.29068779,54642.0,54641.0,9.7e-07]
[1725789352828,1.54690079,54642.0,54641.0,9.7e-07]
[1725789355966,1.54771679,54642.0,54641.0,9.7e-07]
[1725789359337,1.153062,54637.0,54636.0,0.00206844]
[1725789359556,1.253062,54637.0,54636.0,0.00206844]
[1725789367578,1.253062,54637.0,54636.0,0.00369844]
[1725789367779,1.253877,54637.0,54636.0,0.00369844]
[1725789369572,1.30845303,54637.0,54636.0,0.00363471]
[1725789370421,1.253877,54637.0,54636.0,0.00363471]
[1725789371606,1.33574104,54637.0,54636.0,0.00363471]
[1725789372084,1.29009931,54637.0,54636.0,0.00363471]
[1725789372532,1.23540376,54637.0,54636.0,0.00363471]
[1725789372990,1.49163976,54637.0,54636.0,0.00363471]
[1725789374642,1.60108087,54637.0,54636.0,0.00363471]
[1725789375118,1.62861282,54637.0,54636.0,0.00363471]
[1725789375339,1.49163976,54637.0,54636.0,0.00363471]
[1725789376502,1.65580143,54637.0,54636.0,0.00363471]
[1725789377174,1.65643867,54637.0,54636.0,0.00363471]
[1725789377628,1.65644623,54637.0,54636.0,0.00363471]
[1725789378327,1.71684704,54637.0,54636.0,0.00363471]
[1725789379374,1.65644623,54637.0,54636.0,0.00363471]
[1725789380027,1.71665496,54637.0,54636.0,0.00363471]
[1725789380239,1.65644623,54637.0,54636.0,0.00363471]
[1725789380461,1.55177097,54637.0,54636.0,0.00363471]
[1725789380694,1.95460697,54637.0,54636.0,7.1e-07]
[1725789386134,1.95332962,54637.0,54636.0,7.1e-07]
[1725789389175,1.553752,54631.0,54630.0,0.0025]
[1725789389404,1.64690586,54631.0,54630.0,0.0025]
[1725789389873,1.67560535,54631.0,54630.0,0.0025]
[1725789396166,1.59700535,54631.0,54630.0,0.0025]
[1725789396406,1.62443574,54631.0,54630.0,0.0025]
[1725789397446,1.62306124,54631.0,54630.0,0.0025]
[1725789398361,0.0657,54636.0,54630.0,0.0025]
[1725789398362,0.000815,54637.0,54636.0,0.02]
[1725789398589,0.000815,54637.0,54636.0,0.13075022]
[1725789398806,0.000815,54637.0,54636.0,0.22335022]
[1725789399568,0.000815,54637.0,54636.0,0.1356]
[1725789400284,0.385169,54637.0,54636.0,0.046]
[1725789400500,0.385169,54637.0,54636.0,0.048]
[1725789400937,0.485169,54637.0,54636.0,0.048]
[1725789402059,0.228933,54637.0,54636.0,0.048]
[1725789402513,0.64066,54631.0,54630.0,0.002]
[1725789402945,0.64066,54631.0,54630.0,0.00363]
[1725789402946,0.74352282,54631.0,54630.0,0.00363]
[1725789403359,0.82574847,54631.0,54630.0,0.00363]
[1725789408291,0.74352282,54631.0,54630.0,0.00363]
[1725789412755,0.77222045,54631.0,54630.0,0.00363]
[1725789414509,1.02848445,54631.0,54630.0,0.00363]
[1725789414726,0.77222045,54631.0,54630.0,0.00363]
[1725789415650,1.1389464,54631.0,54630.0,0.00363]
[1725789415877,0.8826824,54631.0,54630.0,0.00363]
[1725789416114,1.1389464,54631.0,54630.0,0.00363]
[1725789416814,1.13894784,54631.0,54630.0,0.00363]
[1725789417031,0.88268384,54631.0,54630.0,0.00363]
[1725789417457,1.13894784,54631.0,54630.0,0.00363]
[1725789418506,0.88268384,54631.0,54630.0,0.00363]
[1725789419133,1.13894784,54631.0,54630.0,0.00363]
[1725789419344,0.88268384,54631.0,54630.0,0.00363]
[1725789420415,0.87982102,54631.0,54630.0,0.00363]
[1725789420856,0.87979734,54631.0,54630.0,0.00363]
[1725789423226,0.49579756,54631.0,54630.0,0.00363]
[1725789423684,1.00832556,54631.0,54630.0,0.00363]
[1725789423904,1.00832556,54631.0,54630.0,0.00563]
[1725789424581,0.75206156,54631.0,54630.0,0.00563]
[1725789424794,0.31246339,54631.0,54630.0,0.06213]
[1725789425031,0.25764563,54631.0,54630.0,0.12873]
[1725789428287,0.25764563,54631.0,54630.0,0.06213]
[1725789429448,0.51390963,54631.0,54630.0,0.06213]
[1725789432237,0.51390963,54631.0,54630.0,0.02563]
[1725789433405,0.56872641,54631.0,54630.0,0.02563]
[1725789433711,0.31246241,54631.0,54630.0,0.02563]
[1725789434154,0.18433041,54631.0,54630.0,0.02563]
[1725789434370,0.12951363,54631.0,54630.0,0.02563]
[1725789434596,0.25764563,54631.0,54630.0,0.02563]
[1725789435045,0.12951363,54631.0,54630.0,0.11342644]
[1725789435255,0.12951363,54631.0,54630.0,0.26456044]
[1725789435488,0.12951363,54631.0,54630.0,0.30106044]
[1725789435489,0.02951363,54631.0,54630.0,0.30106044]
[1725789435703,0.02951363,54631.0,54630.0,0.36766044]
[1725789435704,0.12951363,54631.0,54630.0,0.36766044]
[1725789436149,0.02951363,54631.0,54630.0,0.36766044]
[1725789436599,0.02951363,54631.0,54630.0,0.62392944]
[1725789437942,0.02951363,54631.0,54630.0,0.279864]
[1725789438155,0.02951363,54631.0,54630.0,0.36766044]
[1725789440540,0.02951363,54631.0,54630.0,0.30106044]
[1725789441663,0.02951363,54631.0,54630.0,0.04863]
[1725789443177,0.15764563,54631.0,54630.0,0.04863]
[1725789444528,0.41390963,54631.0,54630.0,0.04863]
[1725789444750,0.41390963,54631.0,54630.0,0.02563]
[1725789444981,0.67017363,54631.0,54630.0,0.02563]
[1725789445780,0.641476,54631.0,54630.0,0.02563]
[1725789446596,0.718176,54631.0,54630.0,0.02563]
[1725789451435,0.589228,54631.0,54630.0,0.02563]
[1725789451871,0.71736,54631.0,54630.0,0.02563]
[1725789455855,0.74605623,54631.0,54630.0,0.02563]
[1725789457170,0.74705623,54631.0,54630.0,0.03363]
[1725789458091,0.74805623,54631.0,54630.0,0.03763]
[1725789462705,0.74887223,54631.0,54630.0,0.03763]
[1725789475051,0.49260823,54631.0,54630.0,0.03763]
[1725789475296,0.41590823,54631.0,54630.0,0.03763]
[1725789476232,0.67217223,54631.0,54630.0,0.03763]
[1725789476678,0.41590823,54631.0,54630.0,0.03763]
[1725789478232,0.67217223,54631.0,54630.0,0.03763]
[1725789478882,0.41590823,54631.0,54630.0,0.03763]
[1725789485417,0.15964423,54631.0,54630.0,0.03763]
[1725789499553,0.15908698,54631.0,54630.0,0.03763]
[1725789500858,0.22528698,54631.0,54630.0,0.03763]
[1725789504527,0.48155098,54631.0,54630.0,0.03763]
[1725789505165,0.22528698,54631.0,54630.0,0.03763]
[1725789506267,0.30698698,54631.0,54630.0,0.03763]
[1725789507656,0.256263,54632.0,54630.0,0.03763]
[1725789507657,0.24754763,54632.0,54630.0,0.03763]
[1725789507856,0.24754763,54632.0,54631.0,0.002]
[1725789507857,0.37567763,54632.0,54631.0,0.002]
[1725789508120,0.37567763,54632.0,54631.0,0.012]
[1725789509784,0.37667763,54632.0,54631.0,0.019]
[1725789510233,0.37767763,54632.0,54631.0,0.024]
[1725789510449,0.43807763,54632.0,54631.0,0.024]
[1725789510898,0.0624,54632.0,54631.0,0.024]
[1725789511126,0.446793,54632.0,54631.0,0.024]
[1725789511769,0.446793,54632.0,54631.0,0.034]
[1725789513776,0.19053,54632.0,54631.0,0.034]
[1725789514010,0.002,54632.0,54631.0,0.034]
[1725789514472,0.13013,54632.0,54631.0,0.034]
[1725789519565,0.13013,54632.0,54631.0,0.03563]
[1725789519976,0.130945,54632.0,54631.0,0.03563]
[1725789520703,0.387205,54632.0,54631.0,0.03563]
[1725789521670,1.038925,54632.0,54631.0,0.03563]
[1725789521893,0.782665,54632.0,54631.0,0.03563]
[1725789523199,0.81136126,54632.0,54631.0,0.03563]
[1725789526051,1.06762126,54632.0,54631.0,0.03563]
[1725789526197,0.81136126,54632.0,54631.0,0.03563]
[1725789526397,0.782665,54632.0,54631.0,0.03563]
[1725789530322,1.038925,54632.0,54631.0,0.03563]
[1725789530954,0.782665,54632.0,54631.0,0.03563]
[1725789531874,0.86467045,54632.0,54631.0,0.03563]
[1725789532013,1.038925,54632.0,54631.0,0.03563]
[1725789532455,1.138925,54632.0,54631.0,0.01363]
[1725789533498,1.137925,54632.0,54631.0,0.00863]
[1725789534022,1.137925,54632.0,54631.0,0.00963]
[1725789534195,1.136925,54632.0,54631.0,0.00263]
[1725789534586,1.136925,54632.0,54631.0,0.00663]
[1725789536231,1.393185,54632.0,54631.0,0.00663]
[1725789536451,1.136925,54632.0,54631.0,0.00663]
[1725789536689,1.393185,54632.0,54631.0,0.00663]
[1725789536894,1.136925,54632.0,54631.0,0.00663]
[1725789537965,1.393185,54632.0,54631.0,0.00663]
[1725789538408,1.52965375,54632.0,54631.0,0.00663]
[1725789541847,1.52960491,54632.0,54631.0,0.00663]
[1725789542698,1.27334491,54632.0,54631.0,0.00663]
[1725789542946,1.30204476,54632.0,54631.0,0.00663]
[1725789543181,1.55830476,54632.0,54631.0,0.00663]
[1725789543879,1.30204476,54632.0,54631.0,0.00663]
[1725789544342,1.55830476,54632.0,54631.0,0.00663]
[1725789544557,1.30204476,54632.0,54631.0,0.00663]
[1725789545510,1.16562485,54632.0,54631.0,0.00663]
[1725789546419,1.136925,54632.0,54631.0,0.00663]
[1725789546909,1.393185,54632.0,54631.0,0.00663]
[1725789547130,1.136925,54632.0,54631.0,0.00663]
[1725789547781,1.50224232,54632.0,54631.0,0.00663]
[1725789547997,1.24598232,54632.0,54631.0,0.00663]
[1725789548428,1.24598232,54632.0,54631.0,0.00863]
[1725789550041,1.50224232,54632.0,54631.0,0.00863]
[1725789550269,1.393185,54632.0,54631.0,0.00863]
[1725789550714,1.50215515,54632.0,54631.0,0.00863]
[1725789550928,1.24589515,54632.0,54631.0,0.00463]
[1725789551152,1.24589515,54632.0,54631.0,0.00363]
[1725789551367,1.24689515,54632.0,54631.0,0.00563]
[1725789552013,1.24689719,54632.0,54631.0,0.00563]
[1725789552234,1.50315719,54632.0,54631.0,0.00563]
[1725789552450,1.24689719,54632.0,54631.0,0.00563]
[1725789552937,1.50315719,54632.0,54631.0,0.00563]
[1725789553214,1.394185,54632.0,54631.0,0.00563]
[1725789553427,1.50316202,54632.0,54631.0,0.00563]
[1725789554079,1.394185,54632.0,54631.0,0.00563]
[1725789555034,1.40755953,54632.0,54631.0,0.00363]
[1725789555973,1.40755953,54632.0,54631.0,0.00163]
[1725789556188,1.40655953,54632.0,54631.0,0.00163]
[1725789556635,1.41555953,54632.0,54631.0,0.00163]
[1725789556883,1.40655953,54632.0,54631.0,0.00163]
[1725789557120,1.66281953,54632.0,54631.0,0.00163]
[1725789557338,1.66881953,54632.0,54631.0,0.00263]
[1725789557554,1.41255953,54632.0,54631.0,0.00263]
[1725789557774,1.40655953,54632.0,54631.0,0.00163]
[1725789558223,1.68081953,54632.0,54631.0,0.00263]
[1725789558491,1.68081953,54632.0,54630.0,0.00363]
[1725789558492,0.3869726,54632.0,54630.0,1e-06]
[1725789558703,0.273865,54617.0,54616.0,0.3543133]
[1725789558925,0.273865,54617.0,54600.0,0.1624]
[1725789558926,0.640847,54615.0,54614.0,0.00812]
[1725789559176,1.3538086,54615.0,54614.0,0.00812]
[1725789559390,1.317625,54615.0,54614.0,0.00812]
[1725789560502,1.34633263,54615.0,54614.0,0.00812]
[1725789560942,1.36786349,54615.0,54614.0,0.00812]
[1725789562145,1.37686349,54615.0,54614.0,0.00812]
[1725789562597,1.43530385,54615.0,54614.0,0.00812]
[1725789563051,1.42630385,54615.0,54614.0,0.00812]
[1725789563277,1.43330385,54615.0,54614.0,0.00812]
[1725789563519,1.37886349,54615.0,54614.0,0.00812]
[1725789563979,1.43330385,54615.0,54614.0,0.00812]
[1725789564204,1.37886349,54615.0,54614.0,0.00812]
[1725789564672,1.37186349,54615.0,54614.0,0.00812]
[1725789564910,1.37586349,54615.0,54614.0,0.00812]
[1725789565072,1.35423995,54615.0,54614.0,0.00812]
[1725789565353,1.35723995,54615.0,54614.0,0.00812]
[1725789565722,1.35923995,54615.0,54614.0,0.00812]
[1725789565922,1.35923995,54615.0,54614.0,0.01012]
[1725789566097,1.36023995,54615.0,54614.0,0.00975]
[1725789566504,1.32553232,54615.0,54614.0,0.00975]
[1725789566919,1.32653232,54615.0,54614.0,0.00975]
[1725789568159,1.32553232,54615.0,54614.0,0.00975]
[1725789568656,1.33253232,54615.0,54614.0,0.00975]
[1725789568882,1.32753232,54615.0,54614.0,0.00975]
[1725789569335,1.26843232,54615.0,54614.0,0.00975]
[1725789569552,1.26143232,54615.0,54614.0,0.00975]
[1725789569756,1.29213973,54615.0,54614.0,0.00975]
[1725789570009,1.29713973,54615.0,54614.0,0.00975]
[1725789570227,1.29213973,54615.0,54614.0,0.00975]
[1725789570689,1.29713973,54615.0,54614.0,0.00975]
[1725789571983,1.68557873,54615.0,54614.0,0.00975]
[1725789572230,1.43123973,54615.0,54614.0,0.00975]
[1725789572472,1.43623973,54615.0,54614.0,0.00975]
[1725789572684,1.43123973,54615.0,54614.0,0.00975]
[1725789572905,1.48868009,54615.0,54614.0,0.00975]
[1725789573148,1.42923973,54615.0,54614.0,0.00975]
[1725789573575,1.44323973,54615.0,54614.0,0.00975]
[1725789575007,1.48368009,54615.0,54614.0,0.00975]
[1725789575244,1.49768009,54615.0,54614.0,0.00975]
[1725789575478,1.44323973,54615.0,54614.0,0.00975]
[1725789575716,1.49763352,54615.0,54614.0,0.00975]
[1725789575936,1.48363352,54615.0,54614.0,0.00975]
[1725789576172,1.49263352,54615.0,54614.0,0.00975]
[1725789576411,1.45223973,54615.0,54614.0,0.00975]
[1725789576633,1.45492626,54615.0,54614.0,0.00975]
[1725789577093,1.47292626,54615.0,54614.0,0.00975]
[1725789577604,1.47292975,54615.0,54614.0,0.00975]
[1725789577834,1.50093923,54615.0,54614.0,0.00975]
[1725789578076,1.41934832,54615.0,54614.0,0.00975]
[1725789578309,1.40834832,54615.0,54614.0,0.00975]
[1725789578527,1.49393923,54615.0,54614.0,0.00975]
[1725789578978,1.50093923,54615.0,54614.0,0.00975]
[1725789579457,1.49393923,54615.0,54614.0,0.00975]
[1725789579923,1.52964764,54615.0,54614.0,0.00975]
[1725789583425,1.50245298,54615.0,54614.0,0.00975]
[1725789583662,1.44805673,54615.0,54614.0,0.00975]
[1725789584322,1.52964764,54615.0,54614.0,0.00975]
[1725789585354,1.44805673,54615.0,54614.0,0.00975]
[1725789585597,1.52964764,54615.0,54614.0,0.00975]
[1725789585814,1.44805673,54615.0,54614.0,0.00975]
[1725789586056,1.41934832,54615.0,54614.0,0.00975]
[1725789587626,1.5281362,54615.0,54614.0,0.00975]
[1725789588061,1.7844752,54615.0,54614.0,0.00975]
[1725789588272,1.5281362,54615.0,54614.0,0.00975]
[1725789589151,1.55684472,54615.0,54614.0,0.00975]
[1725789590240,1.5281362,54615.0,54614.0,0.00975]
[1725789590373,1.41934832,54615.0,54614.0,0.00975]
[1725789591791,1.55533317,54615.0,54614.0,0.00975]
[1725789592381,1.58404169,54615.0,54614.0,0.00975]
[1725789592606,1.44805684,54615.0,54614.0,0.00975]
[1725789593301,1.44805684,54615.0,54614.0,0.05975]
[1725789594341,1.70439584,54615.0,54614.0,0.05975]
[1725789594864,1.44805684,54615.0,54614.0,0.05975]
[1725789595064,1.70439584,54615.0,54614.0,0.05975]
[1725789596679,1.67568732,54615.0,54614.0,0.05975]
[1725789597327,1.67568732,54615.0,54614.0,0.10975]
[1725789597564,1.67568732,54615.0,54614.0,0.15975]
[1725789598850,2.18224332,54615.0,54614.0,0.15975]
[1725789599580,2.17124332,54615.0,54614.0,0.15975]
[1725789599798,2.39753204,54615.0,54614.0,0.15975]
[1725789599975,2.37922704,54615.0,54614.0,0.15975]
[1725789600256,2.19564749,54615.0,54614.0,0.086508]
[1725789600435,2.19564749,54615.0,54603.0,0.0102265]
[1725789600436,1.153759,54604.0,54603.0,0.0102265]
[1725789600655,1.33570088,54604.0,54603.0,0.0102265]
[1725789600895,1.253759,54604.0,54603.0,0.0102265]
[1725789601115,1.28246965,54604.0,54603.0,0.0102265]
[1725789601374,1.36440589,54604.0,54603.0,0.0102265]
[1725789601813,1.33569524,54604.0,54603.0,0.0102265]
[1725789602739,1.65025,54604.0,54603.0,0.0102265]
[1725789603430,1.396859,54604.0,54603.0,0.0102265]
[1725789603656,1.320159,54604.0,54603.0,0.0102265]
[1725789603886,1.253759,54604.0,54603.0,0.0102265]
[1725789604125,1.42365514,54604.0,54603.0,0.0102265]
[1725789604404,1.28721023,54604.0,54603.0,0.0102265]
[1725789604620,1.56775514,54604.0,54603.0,0.0102265]
[1725789604868,1.43131023,54604.0,54603.0,0.0102265]
[1725789605094,1.42731023,54604.0,54603.0,0.0102265]
[1725789605320,1.56371843,54604.0,54603.0,0.0102265]
[1725789605557,1.55971843,54604.0,54603.0,0.0102265]
[1725789606008,1.56371843,54604.0,54603.0,0.0102265]
[1725789606201,1.55171843,54604.0,54603.0,0.0102265]
[1725789606706,1.56271843,54604.0,54603.0,0.0102265]
[1725789607403,1.56267221,54604.0,54603.0,0.0102265]
[1725789607849,1.56967221,54604.0,54603.0,0.0102265]
[1725789608072,1.43331023,54604.0,54603.0,0.0102265]
[1725789608317,1.56966579,54604.0,54603.0,0.0102265]
[1725789608509,1.82605679,54604.0,54603.0,0.0102265]
[1725789608765,1.70307603,54604.0,54603.0,0.0102265]
[1725789609198,1.57454896,54604.0,54603.0,0.0102265]
[1725789609422,1.42721352,54604.0,54603.0,0.0102265]
[1725789609652,1.67660452,54604.0,54603.0,0.0102265]
[1725789609859,1.69060452,54604.0,54603.0,0.0102265]
[1725789610071,1.67660452,54604.0,54603.0,0.0102265]
[1725789610263,1.69060452,54604.0,54603.0,0.0102265]
[1725789610544,1.70532036,54604.0,54603.0,0.0102265]
[1725789611181,1.71832036,54604.0,54603.0,0.0102265]
[1725789611606,1.70532036,54604.0,54603.0,0.0102265]
[1725789612100,1.73232036,54604.0,54603.0,0.0102265]
[1725789612541,1.57884556,54604.0,54603.0,0.0102265]
[1725789612764,1.56584556,54604.0,54603.0,0.0102265]
[1725789613207,1.57884556,54604.0,54603.0,0.0102265]
[1725789613432,1.56484556,54604.0,54603.0,0.0102265]
[1725789613666,1.57884556,54604.0,54603.0,0.0102265]
[1725789613925,1.32245456,54604.0,54603.0,0.0102265]
[1725789614655,1.30945456,54604.0,54603.0,0.0102265]